[Event "Late-Titled-Tuesday-Blitz-May-14-2024"]
[Site "Chess.com"]
[Date "2024.05.14"]
[Round "4"]
[White "merinasian"]
[Black "1800_strength"]
[Result "0-1"]
[WhiteElo "2523"]
[BlackElo "2765"]
[TimeControl "180+1"]
[EndTime "14:38:17 PDT"]
[Termination "1800_strength won by resignation"]

1. d4 {[%clk 0:03:00.9]} 1... a5 {[%clk 0:02:56.5]} 2. Nf3 {[%clk 0:02:57.8]}
2... Ra6 {[%clk 0:02:56.9]} 3. e4 {[%clk 0:02:57.1]} 3... g6 {[%clk 0:02:57.4]}
4. Bxa6 {[%clk 0:02:56.1]} 4... Nxa6 {[%clk 0:02:58.3]} 5. O-O {[%clk
0:02:55.6]} 5... Bg7 {[%clk 0:02:59.2]} 6. Nc3 {[%clk 0:02:51.2]} 6... b6 {[%clk
0:03:00.1]} 7. Bg5 {[%clk 0:02:48.2]} 7... Bb7 {[%clk 0:03:01]} 8. Re1 {[%clk
0:02:47.3]} 8... h6 {[%clk 0:02:57.9]} 9. Bf4 {[%clk 0:02:44.6]} 9... e6 {[%clk
0:02:57.8]} 10. Qd2 {[%clk 0:02:43.5]} 10... Ne7 {[%clk 0:02:57.6]} 11. Rad1
{[%clk 0:02:38]} 11... d6 {[%clk 0:02:57.6]} 12. d5 {[%clk 0:02:35.4]} 12... e5
{[%clk 0:02:57.7]} 13. Be3 {[%clk 0:02:34.7]} 13... f5 {[%clk 0:02:57.3]} 14.
exf5 {[%clk 0:02:26.5]} 14... gxf5 {[%clk 0:02:52.9]} 15. Qe2 {[%clk 0:02:26.4]}
15... O-O {[%clk 0:02:49.7]} 16. Bc1 {[%clk 0:02:18.6]} 16... Nb4 {[%clk
0:02:38.4]} 17. a3 {[%clk 0:02:10.2]} 17... Nbxd5 {[%clk 0:02:38.9]} 18. Nxd5
{[%clk 0:02:07.8]} 18... Bxd5 {[%clk 0:02:36.6]} 19. Rxd5 {[%clk 0:01:45.8]}
19... Nxd5 {[%clk 0:02:37.5]} 20. Qc4 {[%clk 0:01:45.9]} 20... Qa8 {[%clk
0:02:26.2]} 21. Rd1 {[%clk 0:01:42.7]} 21... c6 {[%clk 0:02:26.3]} 22. Qh4
{[%clk 0:01:38.2]} 22... Rf6 {[%clk 0:02:12.8]} 23. c4 {[%clk 0:01:38]} 23...
Nc7 {[%clk 0:02:04.6]} 24. Qg3 {[%clk 0:01:31.8]} 24... Qe8 {[%clk 0:01:55.2]}
25. Nh4 {[%clk 0:01:30.5]} 25... Qh5 {[%clk 0:01:40.2]} 26. Nf3 {[%clk
0:01:22.4]} 26... Rg6 {[%clk 0:01:29.5]} 27. Qh4 {[%clk 0:01:22.2]} 27... Qxh4
{[%clk 0:01:29.8]} 28. Nxh4 {[%clk 0:01:22.3]} 28... Rf6 {[%clk 0:01:30.3]} 29.
Nf3 {[%clk 0:01:20.3]} 29... Kf7 {[%clk 0:01:28.5]} 30. Be3 {[%clk 0:01:19.4]}
30... b5 {[%clk 0:01:24]} 31. c5 {[%clk 0:01:18.3]} 31... Bf8 {[%clk 0:01:19.7]}
32. cxd6 {[%clk 0:01:13.6]} 32... Bxd6 {[%clk 0:01:20.6]} 33. Rc1 {[%clk
0:01:12.3]} 33... e4 {[%clk 0:01:19.8]} 34. Nd4 {[%clk 0:01:06.7]} 34... Be5
{[%clk 0:01:03.3]} 35. b4 {[%clk 0:00:53.3]} 35... f4 {[%clk 0:01:02.2]} 36.
Nxc6 {[%clk 0:00:51.2]} 36... Bb2 {[%clk 0:00:55.9]} 37. Nd8+ {[%clk 0:00:46.6]}
37... Ke8 {[%clk 0:00:55.8]} 38. Rxc7 {[%clk 0:00:44.7]} 38... fxe3 {[%clk
0:00:51.6]} 39. Nc6 {[%clk 0:00:37.2]} 39... e2 {[%clk 0:00:51.5]} 0-1

[Event "Late-Titled-Tuesday-Blitz-May-14-2024"]
[Site "Chess.com"]
[Date "2024.05.14"]
[Round "4"]
[White "sergeikim"]
[Black "ClauAmura"]
[Result "1/2-1/2"]
[WhiteElo "2607"]
[BlackElo "2311"]
[TimeControl "180+1"]
[EndTime "14:38:19 PDT"]
[Termination "Game drawn by repetition"]

1. d4 {[%clk 0:03:00.9]} 1... d5 {[%clk 0:02:59.2]} 2. c4 {[%clk 0:03:00.9]}
2... e6 {[%clk 0:02:59.6]} 3. Nc3 {[%clk 0:03:01]} 3... Be7 {[%clk 0:02:59.9]}
4. Nf3 {[%clk 0:03:01.3]} 4... Nf6 {[%clk 0:03:00.5]} 5. Bf4 {[%clk 0:03:01.4]}
5... c6 {[%clk 0:02:53.7]} 6. e3 {[%clk 0:03:01.5]} 6... O-O {[%clk 0:02:52.9]}
7. c5 {[%clk 0:03:00.7]} 7... Nh5 {[%clk 0:02:51.4]} 8. Be5 {[%clk 0:03:00.5]}
8... Nd7 {[%clk 0:02:48.9]} 9. Bd3 {[%clk 0:02:59.9]} 9... Nxe5 {[%clk
0:02:39.6]} 10. Nxe5 {[%clk 0:02:59.6]} 10... Nf6 {[%clk 0:02:37.4]} 11. O-O
{[%clk 0:02:59.4]} 11... g6 {[%clk 0:02:33.9]} 12. b4 {[%clk 0:02:55.1]} 12...
Nd7 {[%clk 0:02:34.1]} 13. f4 {[%clk 0:02:53.7]} 13... f6 {[%clk 0:02:31.9]} 14.
Nf3 {[%clk 0:02:52.9]} 14... e5 {[%clk 0:02:31.8]} 15. fxe5 {[%clk 0:02:50.3]}
15... fxe5 {[%clk 0:02:31.5]} 16. dxe5 {[%clk 0:02:50.1]} 16... Qc7 {[%clk
0:02:24.7]} 17. e4 {[%clk 0:02:50.2]} 17... Nxe5 {[%clk 0:02:23.2]} 18. exd5
{[%clk 0:02:48.5]} 18... Nxf3+ {[%clk 0:01:52.2]} 19. Rxf3 {[%clk 0:02:46.4]}
19... Qe5 {[%clk 0:01:45.5]} 20. Rxf8+ {[%clk 0:02:35.9]} 20... Bxf8 {[%clk
0:01:45]} 21. Qe1 {[%clk 0:02:30.3]} 21... Qd4+ {[%clk 0:01:43.5]} 22. Kh1
{[%clk 0:02:27.6]} 22... Qxd3 {[%clk 0:01:42.6]} 23. Rd1 {[%clk 0:02:26.5]}
23... Qc4 {[%clk 0:01:31.1]} 24. d6 {[%clk 0:02:25.4]} 24... Bd7 {[%clk
0:01:31.2]} 25. Ne4 {[%clk 0:02:23.7]} 25... Bg7 {[%clk 0:01:30.7]} 26. Rc1
{[%clk 0:02:17.2]} 26... Qe6 {[%clk 0:01:29]} 27. Ng5 {[%clk 0:02:13.2]} 27...
Qxe1+ {[%clk 0:01:28.1]} 28. Rxe1 {[%clk 0:02:13.3]} 28... Re8 {[%clk
0:01:25.3]} 29. Rf1 {[%clk 0:02:13.2]} 29... h6 {[%clk 0:01:21.5]} 30. Nf3
{[%clk 0:02:12.7]} 30... Re2 {[%clk 0:01:17.3]} 31. a3 {[%clk 0:02:12.1]} 31...
g5 {[%clk 0:01:16.6]} 32. h3 {[%clk 0:02:11.8]} 32... Bb2 {[%clk 0:01:15.5]} 33.
a4 {[%clk 0:02:08.9]} 33... Re4 {[%clk 0:01:13.6]} 34. Rf2 {[%clk 0:01:55.5]}
34... Rxb4 {[%clk 0:01:09.7]} 35. Re2 {[%clk 0:01:55.7]} 35... Bf6 {[%clk
0:01:09.6]} 36. Ne5 {[%clk 0:01:54.9]} 36... Bxe5 {[%clk 0:01:01.7]} 37. Rxe5
{[%clk 0:01:55]} 37... Rf4 {[%clk 0:01:02.2]} 38. a5 {[%clk 0:01:52.6]} 38...
Rf5 {[%clk 0:00:57.4]} 39. Re7 {[%clk 0:01:51.9]} 39... Rf7 {[%clk 0:00:57]} 40.
Re5 {[%clk 0:01:51.9]} 40... Kf8 {[%clk 0:00:53]} 41. Re3 {[%clk 0:01:45.8]}
41... Rf5 {[%clk 0:00:50.7]} 42. Re7 {[%clk 0:01:45.5]} 42... Rf7 {[%clk
0:00:49.6]} 43. Re3 {[%clk 0:01:45.2]} 43... Rf1+ {[%clk 0:00:49.5]} 44. Kh2
{[%clk 0:01:44.7]} 44... Rf5 {[%clk 0:00:48.1]} 45. Re7 {[%clk 0:01:43.5]} 45...
Rf7 {[%clk 0:00:47.9]} 46. Re3 {[%clk 0:01:43.2]} 46... Bf5 {[%clk 0:00:47]} 47.
g4 {[%clk 0:01:36.7]} 47... Bd7 {[%clk 0:00:45.6]} 48. Kg3 {[%clk 0:01:35.9]}
48... Rf6 {[%clk 0:00:42]} 49. Re7 {[%clk 0:01:35.2]} 49... Rf7 {[%clk
0:00:42.2]} 50. Re3 {[%clk 0:01:34.9]} 50... Rf6 {[%clk 0:00:41]} 51. Re7 {[%clk
0:01:34.4]} 51... Rf7 {[%clk 0:00:41.1]} 52. Re3 {[%clk 0:01:34.1]} 1/2-1/2

[Event "Late-Titled-Tuesday-Blitz-May-14-2024"]
[Site "Chess.com"]
[Date "2024.05.14"]
[Round "4"]
[White "MaxLeto"]
[Black "GelmanAlexander"]
[Result "0-1"]
[WhiteElo "2392"]
[BlackElo "2668"]
[TimeControl "180+1"]
[EndTime "14:38:20 PDT"]
[Termination "GelmanAlexander won on time"]

1. g4 {[%clk 0:03:00.9]} 1... c5 {[%clk 0:02:56]} 2. Bg2 {[%clk 0:03:01.1]} 2...
d6 {[%clk 0:02:56.2]} 3. h3 {[%clk 0:03:01.3]} 3... h6 {[%clk 0:02:55.1]} 4. d4
{[%clk 0:03:01.5]} 4... cxd4 {[%clk 0:02:54.5]} 5. Qxd4 {[%clk 0:02:59.2]} 5...
Nc6 {[%clk 0:02:52.6]} 6. Qa4 {[%clk 0:02:53.9]} 6... Bd7 {[%clk 0:02:52.1]} 7.
Nf3 {[%clk 0:02:50.4]} 7... Nf6 {[%clk 0:02:48.7]} 8. Qb3 {[%clk 0:02:22.2]}
8... Qc7 {[%clk 0:02:44]} 9. Nc3 {[%clk 0:02:15.9]} 9... a6 {[%clk 0:02:43.1]}
10. a4 {[%clk 0:01:09.5]} 10... e6 {[%clk 0:02:42.3]} 11. Bf4 {[%clk 0:01:06.8]}
11... Rc8 {[%clk 0:02:30.5]} 12. Rd1 {[%clk 0:01:03.3]} 12... Na5 {[%clk
0:02:24.1]} 13. Qa2 {[%clk 0:01:02.8]} 13... Nc4 {[%clk 0:02:23.2]} 14. O-O
{[%clk 0:00:54.9]} 14... Be7 {[%clk 0:02:20]} 15. Rd3 {[%clk 0:00:50.5]} 15...
e5 {[%clk 0:02:03.5]} 16. b3 {[%clk 0:00:07.9]} 16... Na5 {[%clk 0:01:48.4]} 17.
Bd2 {[%clk 0:00:05.5]} 17... e4 {[%clk 0:01:44.3]} 18. Re3 {[%clk 0:00:03.6]}
18... exf3 {[%clk 0:01:44.1]} 19. Bxf3 {[%clk 0:00:04.5]} 19... Be6 {[%clk
0:01:34.9]} 20. Ne4 {[%clk 0:00:03.5]} 20... Nd5 {[%clk 0:01:30.3]} 21. Rd3
{[%clk 0:00:03.1]} 21... Nc6 {[%clk 0:01:24.8]} 22. c4 {[%clk 0:00:03.4]} 22...
Ndb4 {[%clk 0:01:24.7]} 23. Bxb4 {[%clk 0:00:03.9]} 23... Nxb4 {[%clk
0:01:23.7]} 24. Qd2 {[%clk 0:00:04.8]} 24... Nxd3 {[%clk 0:01:23.9]} 25. exd3
{[%clk 0:00:05.7]} 25... O-O {[%clk 0:01:23.6]} 26. h4 {[%clk 0:00:05]} 26...
Bxh4 {[%clk 0:01:23]} 27. Bg2 {[%clk 0:00:03.8]} 27... d5 {[%clk 0:01:21.5]} 28.
Nc3 {[%clk 0:00:01.6]} 28... dxc4 {[%clk 0:01:21.4]} 29. bxc4 {[%clk 0:00:02.1]}
29... Rfd8 {[%clk 0:01:20]} 30. Be4 {[%clk 0:00:02.2]} 30... Bxc4 {[%clk
0:01:18.4]} 31. Qe3 {[%clk 0:00:01.7]} 31... Bxd3 {[%clk 0:01:18]} 32. Bxd3
{[%clk 0:00:01.1]} 32... Qxc3 {[%clk 0:01:17.5]} 33. Bh7+ {[%clk 0:00:01.2]}
33... Kxh7 {[%clk 0:01:17.3]} 34. Qe4+ {[%clk 0:00:01.6]} 34... Kg8 {[%clk
0:01:17]} 0-1

[Event "Late-Titled-Tuesday-Blitz-May-14-2024"]
[Site "Chess.com"]
[Date "2024.05.14"]
[Round "4"]
[White "JM05C"]
[Black "Hirna2005"]
[Result "1-0"]
[WhiteElo "2515"]
[BlackElo "2315"]
[TimeControl "180+1"]
[EndTime "14:38:23 PDT"]
[Termination "JM05C won by resignation"]

1. e4 {[%clk 0:03:00.9]} 1... g6 {[%clk 0:03:00.3]} 2. d4 {[%clk 0:03:00.5]}
2... Bg7 {[%clk 0:03:00.9]} 3. Nc3 {[%clk 0:03:00.9]} 3... d6 {[%clk 0:03:01.4]}
4. h4 {[%clk 0:03:01.2]} 4... h5 {[%clk 0:02:57.6]} 5. Nh3 {[%clk 0:03:00.8]}
5... Bxh3 {[%clk 0:02:56.6]} 6. Rxh3 {[%clk 0:03:00.6]} 6... Nc6 {[%clk
0:02:56.9]} 7. Be3 {[%clk 0:02:59.3]} 7... e5 {[%clk 0:02:55.5]} 8. d5 {[%clk
0:02:57.9]} 8... Nce7 {[%clk 0:02:55.6]} 9. f3 {[%clk 0:02:53]} 9... Nh6 {[%clk
0:02:53.4]} 10. Qd2 {[%clk 0:02:51.3]} 10... Qd7 {[%clk 0:02:53.5]} 11. O-O-O
{[%clk 0:02:50.5]} 11... a6 {[%clk 0:02:53.3]} 12. Be2 {[%clk 0:02:48.5]} 12...
O-O-O {[%clk 0:02:52.2]} 13. Rhh1 {[%clk 0:02:47.4]} 13... f5 {[%clk 0:02:49.1]}
14. Kb1 {[%clk 0:02:42.8]} 14... Nf7 {[%clk 0:02:42.7]} 15. g4 {[%clk
0:02:29.6]} 15... hxg4 {[%clk 0:02:35.3]} 16. fxg4 {[%clk 0:02:30.5]} 16... f4
{[%clk 0:01:53.3]} 17. Bf2 {[%clk 0:02:26]} 17... Nh6 {[%clk 0:01:51.7]} 18.
Rhg1 {[%clk 0:02:22.6]} 18... g5 {[%clk 0:01:48.7]} 19. h5 {[%clk 0:01:57.2]}
19... Kb8 {[%clk 0:01:48.3]} 20. a3 {[%clk 0:01:51.3]} 20... Neg8 {[%clk
0:01:47.3]} 21. Bf3 {[%clk 0:01:48.5]} 21... Nf6 {[%clk 0:01:46.8]} 22. Qe2
{[%clk 0:01:48.5]} 22... Rc8 {[%clk 0:01:32.2]} 23. Rd3 {[%clk 0:01:33.1]} 23...
Rce8 {[%clk 0:01:21.3]} 24. Na2 {[%clk 0:01:32]} 24... Kc8 {[%clk 0:01:21.2]}
25. Rb3 {[%clk 0:01:31.3]} 25... c5 {[%clk 0:01:15.4]} 26. dxc6 {[%clk
0:01:28.7]} 26... bxc6 {[%clk 0:01:15.6]} 27. Qxa6+ {[%clk 0:01:27.6]} 27... Kd8
{[%clk 0:01:15.3]} 28. Rb8+ {[%clk 0:01:26.9]} 28... Ke7 {[%clk 0:01:14]} 29.
Rb7 {[%clk 0:01:27.4]} 29... Rb8 {[%clk 0:01:10.4]} 30. Rxd7+ {[%clk 0:01:25.5]}
30... Nxd7 {[%clk 0:01:10.5]} 31. Qxc6 {[%clk 0:01:25.2]} 31... Rhc8 {[%clk
0:01:09.9]} 32. Qd5 {[%clk 0:01:24.7]} 32... Bf6 {[%clk 0:01:02.7]} 33. Rd1
{[%clk 0:01:24.2]} 33... Nf7 {[%clk 0:01:00.8]} 34. Be2 {[%clk 0:01:22.2]} 34...
Nb6 {[%clk 0:00:56.6]} 35. Bxb6 {[%clk 0:01:21.2]} 35... Rxb6 {[%clk 0:00:56.7]}
36. Bc4 {[%clk 0:01:21.6]} 36... Nd8 {[%clk 0:00:54.5]} 37. h6 {[%clk
0:01:19.3]} 37... Rc5 {[%clk 0:00:54.5]} 38. Qg8 {[%clk 0:01:16.4]} 38... d5
{[%clk 0:00:42.9]} 39. Rxd5 {[%clk 0:01:09.2]} 39... Rxd5 {[%clk 0:00:40.3]} 40.
Bxd5 {[%clk 0:01:08.3]} 40... f3 {[%clk 0:00:36.1]} 41. Qh7+ {[%clk 0:01:02.9]}
41... Kd6 {[%clk 0:00:35.7]} 42. Qf5 {[%clk 0:01:02.8]} 1-0

[Event "Late-Titled-Tuesday-Blitz-May-14-2024"]
[Site "Chess.com"]
[Date "2024.05.14"]
[Round "4"]
[White "CixPer1968"]
[Black "maracayo"]
[Result "0-1"]
[WhiteElo "2163"]
[BlackElo "2358"]
[TimeControl "180+1"]
[EndTime "14:38:35 PDT"]
[Termination "maracayo won on time"]

1. d4 {[%clk 0:02:51.3]} 1... d6 {[%clk 0:02:59.4]} 2. c4 {[%clk 0:02:50]} 2...
Nf6 {[%clk 0:02:58.4]} 3. Nc3 {[%clk 0:02:49.1]} 3... e5 {[%clk 0:02:58.3]} 4.
e4 {[%clk 0:02:46.1]} 4... Be7 {[%clk 0:02:56.6]} 5. Nf3 {[%clk 0:02:45.3]} 5...
Nbd7 {[%clk 0:02:55.6]} 6. Be2 {[%clk 0:02:44.8]} 6... O-O {[%clk 0:02:55.3]} 7.
O-O {[%clk 0:02:44.4]} 7... exd4 {[%clk 0:02:55.5]} 8. Nxd4 {[%clk 0:02:43.8]}
8... Ne5 {[%clk 0:02:55.7]} 9. b3 {[%clk 0:02:38.9]} 9... Re8 {[%clk 0:02:54.4]}
10. Bb2 {[%clk 0:02:38.5]} 10... c6 {[%clk 0:02:53.5]} 11. Re1 {[%clk
0:02:37.6]} 11... Qc7 {[%clk 0:02:35.3]} 12. Qd2 {[%clk 0:02:36.7]} 12... h6
{[%clk 0:02:34.5]} 13. h3 {[%clk 0:02:33.6]} 13... Bf8 {[%clk 0:02:33.8]} 14.
Bf1 {[%clk 0:02:33.4]} 14... a6 {[%clk 0:02:33.1]} 15. Rad1 {[%clk 0:02:32.8]}
15... Bd7 {[%clk 0:02:32.3]} 16. g3 {[%clk 0:02:31.2]} 16... c5 {[%clk
0:02:31.1]} 17. Nc2 {[%clk 0:02:29]} 17... Nf3+ {[%clk 0:02:30.3]} 18. Kh1
{[%clk 0:02:06.1]} 18... Nxd2 {[%clk 0:02:29.3]} 19. Rxd2 {[%clk 0:02:07]} 19...
Bc6 {[%clk 0:02:26.8]} 20. Bg2 {[%clk 0:02:06.6]} 20... b5 {[%clk 0:02:26.2]}
21. Nd5 {[%clk 0:01:54]} 21... Nxd5 {[%clk 0:02:13]} 22. cxd5 {[%clk 0:01:54.9]}
22... Bd7 {[%clk 0:02:07.4]} 23. Ne3 {[%clk 0:01:51.5]} 23... a5 {[%clk
0:02:03.4]} 24. f4 {[%clk 0:01:42.4]} 24... a4 {[%clk 0:02:00.8]} 25. f5 {[%clk
0:01:38.2]} 25... f6 {[%clk 0:01:51.2]} 26. h4 {[%clk 0:01:30.7]} 26... axb3
{[%clk 0:01:49.7]} 27. axb3 {[%clk 0:01:31.6]} 27... Ra2 {[%clk 0:01:46]} 28. g4
{[%clk 0:01:31.3]} 28... Qa5 {[%clk 0:01:41.9]} 29. Ree2 {[%clk 0:01:28.3]}
29... Ra8 {[%clk 0:01:34.9]} 30. Bf3 {[%clk 0:01:26.2]} 30... Qb4 {[%clk
0:01:30.8]} 31. Rd3 {[%clk 0:01:19.2]} 31... c4 {[%clk 0:01:17.3]} 32. Nc2
{[%clk 0:00:19.1]} 32... cxd3 {[%clk 0:01:09.5]} 33. Nxb4 {[%clk 0:00:11.8]}
33... dxe2 {[%clk 0:01:09.2]} 34. Bc3 {[%clk 0:00:08.8]} 34... Ra1+ {[%clk
0:01:07.1]} 35. Kg2 {[%clk 0:00:02.9]} 35... e1=Q {[%clk 0:01:06.9]} 36. Bxe1
{[%clk 0:00:02.8]} 36... Rxe1 {[%clk 0:01:06.6]} 0-1

[Event "Late-Titled-Tuesday-Blitz-May-14-2024"]
[Site "Chess.com"]
[Date "2024.05.14"]
[Round "4"]
[White "SpeedofLight0"]
[Black "simaopdias"]
[Result "1-0"]
[WhiteElo "3008"]
[BlackElo "2236"]
[TimeControl "180+1"]
[EndTime "14:38:37 PDT"]
[Termination "SpeedofLight0 won by resignation"]

1. d4 {[%clk 0:03:00.9]} 1... d5 {[%clk 0:02:59.2]} 2. Nc3 {[%clk 0:02:59.9]}
2... Nf6 {[%clk 0:02:58.5]} 3. Bf4 {[%clk 0:02:59.9]} 3... c6 {[%clk 0:02:58.4]}
4. e3 {[%clk 0:02:59.3]} 4... Bf5 {[%clk 0:02:58.6]} 5. Bd3 {[%clk 0:02:59.3]}
5... Bxd3 {[%clk 0:02:58.6]} 6. cxd3 {[%clk 0:03:00.2]} 6... e6 {[%clk 0:02:59]}
7. Nf3 {[%clk 0:03:00.3]} 7... Nbd7 {[%clk 0:02:58.4]} 8. Qb3 {[%clk 0:03:00.2]}
8... Qb6 {[%clk 0:02:58]} 9. Qc2 {[%clk 0:03:00.1]} 9... Be7 {[%clk 0:02:54.3]}
10. O-O {[%clk 0:03:00]} 10... O-O {[%clk 0:02:54.3]} 11. e4 {[%clk 0:02:59.7]}
11... Rfd8 {[%clk 0:01:55.6]} 12. Rfe1 {[%clk 0:02:50.8]} 12... Nf8 {[%clk
0:01:55]} 13. Ne5 {[%clk 0:02:41.8]} 13... N6d7 {[%clk 0:01:51.6]} 14. Nxd7
{[%clk 0:02:34.8]} 14... Rxd7 {[%clk 0:01:49.4]} 15. Be3 {[%clk 0:02:29.1]}
15... Rad8 {[%clk 0:01:46.3]} 16. g3 {[%clk 0:02:26.7]} 16... Bf6 {[%clk
0:01:45]} 17. Na4 {[%clk 0:02:24.1]} 17... Qa5 {[%clk 0:01:32.1]} 18. Nc5 {[%clk
0:02:23.5]} 18... dxe4 {[%clk 0:00:56.7]} 19. Nxd7 {[%clk 0:02:17.8]} 19... Rxd7
{[%clk 0:00:53.5]} 20. dxe4 {[%clk 0:02:14.9]} 20... Bxd4 {[%clk 0:00:53.4]} 21.
a3 {[%clk 0:02:05.5]} 21... e5 {[%clk 0:00:50.7]} 22. Rad1 {[%clk 0:02:01.4]}
22... Ne6 {[%clk 0:00:49.5]} 23. Kg2 {[%clk 0:01:58.6]} 23... Qd8 {[%clk
0:00:48.2]} 24. Bc1 {[%clk 0:01:54.1]} 24... h6 {[%clk 0:00:37]} 25. h4 {[%clk
0:01:54]} 25... Qe7 {[%clk 0:00:32.7]} 26. b4 {[%clk 0:01:48]} 26... a6 {[%clk
0:00:31.3]} 27. Rd3 {[%clk 0:01:45.4]} 27... Qf6 {[%clk 0:00:18.2]} 28. Red1
{[%clk 0:01:45.5]} 28... Qg6 {[%clk 0:00:18.1]} 29. Rf3 {[%clk 0:01:43.7]} 29...
Nf8 {[%clk 0:00:10.3]} 30. Rf5 {[%clk 0:01:41]} 30... Qe6 {[%clk 0:00:08.3]} 31.
h5 {[%clk 0:01:41.5]} 31... Rd6 {[%clk 0:00:06.3]} 32. Qe2 {[%clk 0:01:36.7]}
32... Qd7 {[%clk 0:00:06.8]} 33. Qg4 {[%clk 0:01:34]} 33... Ne6 {[%clk
0:00:06.5]} 34. Bxh6 {[%clk 0:01:33.1]} 34... Kf8 {[%clk 0:00:04.3]} 35. Bc1
{[%clk 0:01:28.2]} 35... Bb6 {[%clk 0:00:02.7]} 36. Rxd6 {[%clk 0:01:21.2]}
36... Qxd6 {[%clk 0:00:03.6]} 37. Qg6 {[%clk 0:01:16.7]} 37... Qd7 {[%clk
0:00:02.9]} 38. h6 {[%clk 0:01:15.6]} 38... gxh6 {[%clk 0:00:02.9]} 39. Bxh6+
{[%clk 0:01:15.5]} 39... Ke8 {[%clk 0:00:03.4]} 40. Qg8+ {[%clk 0:01:15.9]}
40... Ke7 {[%clk 0:00:03.4]} 41. Rxf7+ {[%clk 0:01:16.2]} 1-0

[Event "Late-Titled-Tuesday-Blitz-May-14-2024"]
[Site "Chess.com"]
[Date "2024.05.14"]
[Round "4"]
[White "Cambek64"]
[Black "PawnEatingZombie"]
[Result "1-0"]
[WhiteElo "2507"]
[BlackElo "2301"]
[TimeControl "180+1"]
[EndTime "14:38:37 PDT"]
[Termination "Cambek64 won on time"]

1. e4 {[%clk 0:02:51.6]} 1... c5 {[%clk 0:02:59.7]} 2. Nf3 {[%clk 0:02:51.4]}
2... Nc6 {[%clk 0:02:59.7]} 3. Bb5 {[%clk 0:02:50.4]} 3... Nf6 {[%clk 0:02:58]}
4. Bxc6 {[%clk 0:02:46.2]} 4... dxc6 {[%clk 0:02:57.7]} 5. d3 {[%clk 0:02:46.7]}
5... Bg4 {[%clk 0:02:50.8]} 6. Nc3 {[%clk 0:02:46]} 6... Nd7 {[%clk 0:02:36.8]}
7. h3 {[%clk 0:02:44.9]} 7... Bh5 {[%clk 0:02:36.4]} 8. Be3 {[%clk 0:02:41.1]}
8... e5 {[%clk 0:02:33.9]} 9. g4 {[%clk 0:02:39.3]} 9... Bg6 {[%clk 0:02:33.4]}
10. Qe2 {[%clk 0:02:33.3]} 10... Be7 {[%clk 0:02:31.6]} 11. O-O-O {[%clk
0:02:33.6]} 11... Qc7 {[%clk 0:02:17.7]} 12. Kb1 {[%clk 0:02:30.1]} 12... O-O-O
{[%clk 0:02:16.6]} 13. h4 {[%clk 0:02:30.5]} 13... h5 {[%clk 0:02:16]} 14. g5
{[%clk 0:02:30.1]} 14... Kb8 {[%clk 0:02:12.6]} 15. Nd2 {[%clk 0:02:19]} 15...
Nf8 {[%clk 0:02:10.4]} 16. Qf1 {[%clk 0:02:14.4]} 16... Ne6 {[%clk 0:02:09.5]}
17. Ne2 {[%clk 0:02:15]} 17... b5 {[%clk 0:01:49.5]} 18. f3 {[%clk 0:02:12.5]}
18... f5 {[%clk 0:01:29.9]} 19. exf5 {[%clk 0:02:09.4]} 19... Bxf5 {[%clk
0:01:28.4]} 20. Ng3 {[%clk 0:02:09.7]} 20... g6 {[%clk 0:01:23.2]} 21. Nge4
{[%clk 0:02:08.4]} 21... Nd4 {[%clk 0:01:07.5]} 22. Qg2 {[%clk 0:02:06.8]} 22...
Rhf8 {[%clk 0:01:03]} 23. c3 {[%clk 0:02:04.3]} 23... Ne6 {[%clk 0:00:55.1]} 24.
Nb3 {[%clk 0:02:04.3]} 24... c4 {[%clk 0:00:38.6]} 25. dxc4 {[%clk 0:02:03.6]}
25... bxc4 {[%clk 0:00:39.1]} 26. Nc1 {[%clk 0:02:02.5]} 26... Nf4 {[%clk
0:00:26.5]} 27. Bxf4 {[%clk 0:02:00.3]} 27... exf4 {[%clk 0:00:26.1]} 28. Qe2
{[%clk 0:01:59]} 28... Bxe4+ {[%clk 0:00:22.5]} 29. Qxe4 {[%clk 0:01:57.1]}
29... Bc5 {[%clk 0:00:15.7]} 30. Qxc4 {[%clk 0:01:56]} 30... Be3 {[%clk
0:00:15.4]} 31. Nb3 {[%clk 0:01:53.2]} 31... Qb6 {[%clk 0:00:12.2]} 32. Kc2
{[%clk 0:01:38.5]} 32... Rf5 {[%clk 0:00:11.9]} 33. Rxd8+ {[%clk 0:01:37.6]}
33... Qxd8 {[%clk 0:00:12.4]} 34. Rd1 {[%clk 0:01:37.7]} 34... Rd5 {[%clk
0:00:11.7]} 35. Nd4 {[%clk 0:01:36]} 35... Bxd4 {[%clk 0:00:06.8]} 36. Rxd4
{[%clk 0:01:28.3]} 36... Qd7 {[%clk 0:00:06.5]} 37. Rxd5 {[%clk 0:01:26.6]}
37... cxd5 {[%clk 0:00:06.3]} 38. Qxf4+ {[%clk 0:01:26.8]} 38... Kb7 {[%clk
0:00:07]} 39. Qd4 {[%clk 0:01:21.1]} 39... Qf5+ {[%clk 0:00:05.8]} 40. Qd3
{[%clk 0:01:21.6]} 40... Qf4 {[%clk 0:00:02.6]} 41. Qxd5+ {[%clk 0:01:20.7]}
41... Kc7 {[%clk 0:00:01.6]} 42. Qe4 {[%clk 0:01:21.2]} 42... Qh2+ {[%clk
0:00:01.3]} 43. Kb3 {[%clk 0:01:21]} 1-0

[Event "Late-Titled-Tuesday-Blitz-May-14-2024"]
[Site "Chess.com"]
[Date "2024.05.14"]
[Round "4"]
[White "deathadder96"]
[Black "TheBigBadChessDad"]
[Result "1-0"]
[WhiteElo "2874"]
[BlackElo "2283"]
[TimeControl "180+1"]
[EndTime "14:38:38 PDT"]
[Termination "deathadder96 won on time"]

1. e4 {[%clk 0:02:58.8]} 1... e5 {[%clk 0:02:59.1]} 2. Nf3 {[%clk 0:02:49.9]}
2... Nc6 {[%clk 0:02:58.8]} 3. Bc4 {[%clk 0:02:50.5]} 3... Bc5 {[%clk
0:02:57.6]} 4. d3 {[%clk 0:02:50.3]} 4... a6 {[%clk 0:02:56.7]} 5. Nc3 {[%clk
0:02:49.7]} 5... Nf6 {[%clk 0:02:54.6]} 6. Be3 {[%clk 0:02:48.1]} 6... d6 {[%clk
0:02:54.2]} 7. Bxc5 {[%clk 0:02:48.3]} 7... dxc5 {[%clk 0:02:54.4]} 8. Nd5
{[%clk 0:02:48.6]} 8... Be6 {[%clk 0:02:48.2]} 9. Ne3 {[%clk 0:02:46]} 9... Bxc4
{[%clk 0:02:44.8]} 10. Nxc4 {[%clk 0:02:46.9]} 10... Qe7 {[%clk 0:02:42.2]} 11.
a4 {[%clk 0:02:45.6]} 11... b6 {[%clk 0:02:34.1]} 12. O-O {[%clk 0:02:45.5]}
12... O-O {[%clk 0:02:33.7]} 13. g3 {[%clk 0:02:45.2]} 13... Rfe8 {[%clk
0:02:26.1]} 14. Ne3 {[%clk 0:02:45.1]} 14... g6 {[%clk 0:02:25.1]} 15. Nd2
{[%clk 0:02:45.3]} 15... Qe6 {[%clk 0:02:17.8]} 16. f3 {[%clk 0:02:38.7]} 16...
Qh3 {[%clk 0:02:15.3]} 17. Rf2 {[%clk 0:02:38.8]} 17... Rad8 {[%clk 0:02:09.8]}
18. Qf1 {[%clk 0:02:32.3]} 18... Qxf1+ {[%clk 0:02:08.6]} 19. Raxf1 {[%clk
0:02:33.2]} 19... Nd4 {[%clk 0:02:08.7]} 20. f4 {[%clk 0:02:32.1]} 20... Nd7
{[%clk 0:02:03.7]} 21. f5 {[%clk 0:02:27.2]} 21... g5 {[%clk 0:01:50.8]} 22. f6
{[%clk 0:02:21.3]} 22... h6 {[%clk 0:01:42.3]} 23. h4 {[%clk 0:02:03.9]} 23...
Kh7 {[%clk 0:00:53.7]} 24. c3 {[%clk 0:01:35.3]} 24... Ne6 {[%clk 0:00:43.2]}
25. Nf3 {[%clk 0:01:20.8]} 25... Kg6 {[%clk 0:00:39.3]} 26. hxg5 {[%clk
0:01:16.5]} 26... hxg5 {[%clk 0:00:37.9]} 27. Ng4 {[%clk 0:01:17]} 27... Nef8
{[%clk 0:00:34.7]} 28. Rh2 {[%clk 0:01:16.4]} 28... Nxf6 {[%clk 0:00:30.3]} 29.
Rh6+ {[%clk 0:01:16]} 29... Kg7 {[%clk 0:00:30.8]} 30. Rxf6 {[%clk 0:01:16.1]}
30... Rxd3 {[%clk 0:00:26.3]} 31. Nfxe5 {[%clk 0:01:09.4]} 31... Rxg3+ {[%clk
0:00:22.7]} 32. Kh2 {[%clk 0:01:09.6]} 32... Rxg4 {[%clk 0:00:18.6]} 33. Rxf7+
{[%clk 0:01:07.8]} 33... Kg8 {[%clk 0:00:19.1]} 34. Nxg4 {[%clk 0:01:07.9]}
34... Ng6 {[%clk 0:00:18.9]} 35. Rxc7 {[%clk 0:01:03.2]} 1-0